bitfinex/quotes_SOLUSD_20251119
["timestamp","ask_amount","ask_price","bid_price","bid_amount"]
[1763581403277,18.79096,131.42,131.39,11.36750697]
[1763581403483,11.36750697,131.45,131.4,11.36750697]
[1763581403668,11.36750697,131.45,131.41,21.15633466]
[1763581403873,0.67,131.44,131.41,21.15633466]
[1763581404760,0.67,131.44,131.39,1.82]
[1763581404761,11.36750697,131.43,131.39,1.82]
[1763581404984,11.36750697,131.43,131.4,9.78882769]
[1763581405150,0.67,131.42,131.4,9.78882769]
[1763581405963,0.67,131.42,131.4,21.15633466]
[1763581406574,5.79041483,131.44,131.4,21.15633466]
[1763581406777,0.67,131.43,131.4,21.15633466]
[1763581407358,0.67,131.43,131.41,11.36750697]
[1763581407853,18.79096,131.45,131.41,13.18750697]
[1763581408050,0.67,131.45,131.41,13.18750697]
[1763581408264,0.67,131.45,131.42,9.78882769]
[1763581408983,0.67,131.45,131.42,21.15633466]
[1763581409179,0.67,131.45,131.42,9.78882769]
[1763581409381,12.03750697,131.45,131.42,9.78882769]
[1763581409584,0.67,131.44,131.42,9.78882769]
[1763581410883,0.67,131.44,131.42,21.15633466]
[1763581411091,5.79339267,131.46,131.43,11.36750697]
[1763581411285,0.67,131.48,131.45,11.36750697]
[1763581411588,0.67,131.47,131.45,1.82]
[1763581413277,12.03750697,131.47,131.45,1.82]
[1763581413490,12.03750697,131.47,131.43,22.97633466]
[1763581413807,0.67,131.46,131.44,11.36750697]
[1763581414291,0.67,131.46,131.43,11.60882769]
[1763581414484,0.67,131.46,131.44,11.36750697]
[1763581415779,0.67,131.48,131.44,11.36750697]
[1763581416197,12.03750697,131.48,131.44,11.36750697]
[1763581416378,0.67,131.48,131.44,11.36750697]
[1763581416578,0.67,131.47,131.44,11.36750697]
[1763581417296,0.67,131.47,131.43,1.82]
[1763581417468,0.67,131.47,131.42,21.15633466]
[1763581417469,11.36750697,131.46,131.42,21.15633466]
[1763581417676,11.36750697,131.46,131.42,79.97633466]
[1763581417976,0.67,131.45,131.42,68.60882769]
[1763581418609,11.36750697,131.44,131.42,57.0]
[1763581418813,20.61096,131.45,131.38,11.60882769]
[1763581418814,12.03750697,131.43,131.38,11.60882769]
[1763581419000,11.36750697,131.42,131.38,79.97633466]
[1763581419314,12.03750697,131.42,131.38,79.97633466]
[1763581419516,0.67,131.41,131.38,79.97633466]
[1763581421303,0.67,131.41,131.39,11.36750697]
[1763581422796,0.67,131.41,131.38,68.60882769]
[1763581422991,0.67,131.41,131.38,73.36769195]
[1763581424810,0.67,131.41,131.38,68.60882769]
[1763581425098,0.67,131.41,131.38,73.36769195]
[1763581427612,0.67,131.41,131.39,4.75886426]
[1763581428308,1.82,131.43,131.39,4.75886426]
[1763581428509,0.67,131.42,131.39,4.75886426]
[1763581429719,0.67,131.42,131.4,9.78882769]
[1763581429915,0.67,131.42,131.4,14.54769195]
[1763581430216,0.7,131.44,131.41,4.75886426]
[1763581430426,18.82096,131.43,131.41,57.0]
[1763581430801,0.7,131.42,131.41,57.0]
[1763581431300,5.45886426,131.42,131.41,57.0]
[1763581432804,0.7,131.42,131.41,57.0]
[1763581435638,0.7,131.42,131.39,4.75886426]
[1763581437149,0.7,131.42,131.39,14.54769195]
[1763581437430,0.7,131.42,131.4,4.75886426]
[1763581438209,23.24362312,131.44,131.4,4.75886426]
[1763581438432,4.75886426,131.48,131.43,9.78882769]
[1763581438642,0.7,131.44,131.43,9.78882769]
[1763581438940,6.57886426,131.47,131.43,14.54769195]
[1763581438941,19.94096,131.47,131.43,14.54769195]
[1763581439103,0.7,131.46,131.44,9.78882769]
[1763581439307,0.7,131.46,131.43,4.75886426]
[1763581439604,0.7,131.46,131.42,9.78882769]
[1763581439823,5.82271725,131.46,131.42,9.78882769]
[1763581440031,5.82257672,131.46,131.42,14.54769195]
[1763581440231,0.7,131.45,131.42,14.54769195]
[1763581440537,0.7,131.45,131.42,9.78882769]
[1763581440712,5.45886426,131.45,131.42,9.78882769]
[1763581440906,0.7,131.44,131.42,9.78882769]
[1763581441306,0.7,131.44,131.41,1.82]
[1763581441819,10.58144098,131.46,131.41,6.57886426]
[1763581442021,18.12096,131.47,131.44,9.78882769]
[1763581442332,18.82096,131.47,131.44,9.78882769]
[1763581442542,0.7,131.46,131.44,9.78882769]
[1763581443025,18.82096,131.47,131.44,9.78882769]
[1763581443214,23.94536123,131.47,131.44,9.78882769]
[1763581444047,0.7,131.46,131.43,1.82]
[1763581444332,10.58337509,131.46,131.43,1.82]
[1763581444733,0.7,131.45,131.42,9.78882769]
[1763581444916,5.82451083,131.46,131.42,14.82769195]
[1763581445314,0.7,131.45,131.42,14.54769195]
[1763581445512,5.12451083,131.46,131.44,9.78882769]
[1763581445811,23.94547083,131.47,131.44,9.78882769]
[1763581446144,23.94547083,131.47,131.44,14.54769195]
[1763581446436,23.94547083,131.47,131.44,9.78882769]
[1763581446608,0.7,131.46,131.43,1.82]
[1763581446816,10.58337509,131.46,131.41,6.57886426]
[1763581447032,5.82451083,131.46,131.42,4.75886426]
[1763581447432,5.12451083,131.46,131.44,4.75886426]
[1763581447738,23.24547083,131.47,131.44,4.75886426]
[1763581447936,18.12096,131.47,131.44,4.75886426]
[1763581448120,0.7,131.49,131.46,9.78882769]
[1763581448942,0.7,131.49,131.46,14.54769195]
[1763581449136,5.82666006,131.5,131.48,14.54769195]
[1763581449450,6.39265229,131.54,131.48,9.78882769]
[1763581449451,0.7,131.49,131.48,9.78882769]
[1763581451249,0.7,131.49,131.46,6.57886426]
[1763581453524,0.7,131.49,131.46,63.57886426]
[1763581454034,0.7,131.49,131.46,58.82]
[1763581454420,5.45886426,131.49,131.46,58.82]
[1763581454643,4.75886426,131.48,131.46,57.0]
[1763581454846,5.45886426,131.48,131.46,57.0]
[1763581455142,0.7,131.47,131.46,56.9]
[1763581455744,5.45886426,131.47,131.46,56.9]
[1763581456150,0.7,131.47,131.46,56.9]
[1763581456655,4.75886426,131.49,131.46,56.9]
[1763581456834,0.7,131.47,131.46,56.9]
[1763581461455,8.81162068,131.5,131.45,13.1119942]
[1763581461639,5.10845417,131.5,131.47,9.78882769]
[1763581461956,3.04316651,131.48,131.45,9.78882769]
[1763581462455,21.82412651,131.47,131.45,9.78882769]
[1763581462754,0.66,131.46,131.44,1.82]
[1763581463259,0.66,131.46,131.43,9.78882769]
[1763581463260,3.70316651,131.46,131.43,9.78882769]
[1763581463431,18.12096,131.45,131.41,9.78882769]
[1763581463632,3.04316651,131.44,131.41,9.78882769]
[1763581463866,3.70316651,131.44,131.41,9.78882769]
[1763581464069,3.70316651,131.43,131.4,58.72]
[1763581464730,0.66,131.43,131.4,58.72]
[1763581465063,3.04316651,131.44,131.4,58.72]
[1763581465271,0.66,131.43,131.41,9.78882769]
[1763581465965,0.69,131.43,131.41,9.78882769]
[1763581468458,0.69,131.43,131.41,66.68882769]
[1763581468656,0.69,131.43,131.41,68.50882769]
[1763581468834,2.51,131.46,131.42,3.04316651]
[1763581469037,0.69,131.45,131.42,3.04316651]
[1763581469251,0.69,131.45,131.41,71.5519942]
[1763581469558,0.69,131.45,131.41,71.8319942]
[1763581470334,0.69,131.46,131.43,9.78882769]
[1763581470536,0.69,131.45,131.43,9.78882769]
[1763581472149,3.04316651,131.46,131.43,9.78882769]
[1763581472349,18.81096,131.48,131.45,9.78882769]
[1763581472670,0.69,131.48,131.45,11.60882769]
[1763581473167,0.69,131.48,131.45,14.6519942]
[1763581473368,0.69,131.5,131.47,3.04316651]
[1763581473575,0.69,131.49,131.47,9.78882769]
[1763581474556,0.69,131.49,131.47,11.60882769]
[1763581478385,21.16412651,131.51,131.47,14.6519942]
[1763581478587,0.69,131.5,131.47,14.6519942]
[1763581478802,0.69,131.5,131.47,68.50882769]
[1763581479696,3.04316651,131.51,131.47,71.8319942]
[1763581479860,0.69,131.5,131.47,71.5519942]
[1763581480280,0.69,131.5,131.47,71.8319942]
[1763581480489,0.69,131.5,131.47,71.5519942]
[1763581480791,21.85412651,131.53,131.5,9.78882769]
[1763581480998,18.81096,131.53,131.5,9.78882769]
[1763581481588,0.69,131.53,131.5,9.78882769]
[1763581481765,3.73316651,131.53,131.5,9.78882769]
[1763581482085,3.73316651,131.53,131.5,11.60882769]
[1763581482377,0.69,131.53,131.5,11.60882769]
[1763581482766,21.85412651,131.54,131.5,11.88882769]
[1763581483283,18.81096,131.54,131.5,14.9319942]
[1763581483486,0.69,131.53,131.5,11.60882769]
[1763581483992,3.04316651,131.51,131.48,56.9]
[1763581484356,3.73316651,131.51,131.48,56.9]
[1763581484961,0.69,131.5,131.48,56.9]
[1763581485158,0.69,131.5,131.47,12.8319942]
[1763581489099,0.69,131.5,131.47,69.7319942]
[1763581491708,5.52316651,131.52,131.47,70.0119942]
[1763581491889,0.66,131.51,131.48,4.86316651]
[1763581492091,0.66,131.51,131.48,1.82]
[1763581492092,3.70316651,131.51,131.48,1.82]
[1763581492515,0.66,131.5,131.48,1.82]
[1763581493302,0.66,131.51,131.48,1.82]
[1763581493498,0.66,131.5,131.48,1.82]
[1763581494714,0.66,131.51,131.48,4.86316651]
[1763581494888,0.66,131.51,131.49,9.78882769]
[1763581495701,3.70316651,131.51,131.49,9.78882769]
[1763581496098,0.66,131.5,131.48,58.72]
[1763581496514,3.70316651,131.5,131.48,58.72]
[1763581496704,0.66,131.49,131.48,68.50882769]
[1763581497798,0.66,131.5,131.48,68.50882769]
[1763581498206,0.66,131.52,131.49,9.78882769]
[1763581498400,0.66,131.51,131.49,9.78882769]
[1763581498606,0.66,131.51,131.49,12.8319942]
[1763581498805,0.66,131.51,131.49,9.78882769]
[1763581500611,18.12096,131.52,131.49,9.78882769]
[1763581500612,21.16412651,131.52,131.49,9.78882769]
[1763581500818,0.66,131.5,131.48,61.76316651]
[1763581500992,0.66,131.5,131.49,3.04316651]
[1763581501195,0.66,131.5,131.48,61.76316651]
[1763581501396,0.66,131.5,131.47,56.9]
[1763581501624,0.66,131.5,131.47,59.94316651]
[1763581501810,24.69718763,131.52,131.48,12.8319942]
[1763581502009,24.69718763,131.52,131.5,3.04316651]
[1763581502010,18.12096,131.52,131.5,3.04316651]
[1763581502237,22.87021154,131.56,131.52,9.78882769]
[1763581502407,22.87021154,131.56,131.53,1.82]
[1763581502606,0.66,131.55,131.47,27.90978769]
[1763581502837,0.66,131.55,131.52,3.04316651]
[1763581502999,18.78096,131.55,131.53,3.04316651]
[1763581503198,0.66,131.55,131.52,3.04316651]
[1763581503396,5.06316651,131.57,131.5,3.04316651]
[1763581503397,3.70316651,131.54,131.5,3.04316651]
[1763581503630,5.52316651,131.54,131.49,3.04316651]
[1763581503812,0.66,131.53,131.47,9.78882769]
[1763581504004,0.66,131.53,131.47,10.06882769]
[1763581504207,0.66,131.53,131.52,3.04316651]
[1763581504403,0.66,131.53,131.51,3.04316651]
[1763581504706,0.66,131.53,131.52,3.04316651]
[1763581505931,0.66,131.53,131.5,9.78882769]
[1763581505932,0.66,131.53,131.47,9.78882769]
[1763581506108,0.66,131.53,131.49,3.04316651]
[1763581506509,0.66,131.53,131.48,3.04316651]
[1763581506510,3.70316651,131.53,131.48,3.04316651]
[1763581506918,0.66,131.52,131.48,3.04316651]
[1763581507119,18.78096,131.52,131.48,3.04316651]
[1763581507306,0.66,131.52,131.48,3.04316651]
[1763581507506,4.86316651,131.53,131.48,3.04316651]
[1763581507507,0.66,131.51,131.48,3.04316651]
[1763581508104,2.48,131.53,131.5,3.04316651]
[1763581508328,0.66,131.52,131.5,3.04316651]
[1763581509822,0.66,131.52,131.49,3.04316651]
[1763581510130,0.66,131.52,131.48,59.94316651]
[1763581510427,0.66,131.52,131.49,3.04316651]
[1763581510841,18.78096,131.53,131.5,3.04316651]
[1763581511014,0.66,131.52,131.5,3.04316651]
[1763581511214,0.66,131.52,131.49,3.04316651]
[1763581511524,5.76165985,131.52,131.48,59.94316651]
[1763581511832,3.70316651,131.52,131.48,59.94316651]
[1763581512043,0.66,131.51,131.48,59.94316651]
[1763581512532,0.66,131.51,131.48,56.9]
[1763581512843,0.66,131.51,131.47,71.5519942]
[1763581513535,0.66,131.51,131.48,3.04316651]
[1763581513703,0.66,131.51,131.47,68.50882769]
[1763581513704,0.66,131.51,131.47,71.5519942]
[1763581513904,0.66,131.51,131.48,3.04316651]
[1763581514104,0.66,131.51,131.47,71.5519942]
[1763581514526,0.66,131.51,131.48,3.04316651]
[1763581516027,0.66,131.51,131.49,3.04316651]
[1763581516234,0.66,131.51,131.48,9.78882769]
[1763581516442,3.04316651,131.5,131.45,12.8319942]
[1763581516645,18.12096,131.48,131.44,56.9]
[1763581516821,21.16412651,131.48,131.43,14.6519942]
[1763581517011,0.66,131.47,131.43,71.5519942]
[1763581517212,0.66,131.47,131.44,3.04316651]
[1763581518136,5.78519176,131.47,131.44,3.04316651]
[1763581518446,0.66,131.47,131.43,68.50882769]
[1763581518645,0.66,131.46,131.43,14.6519942]
[1763581519214,0.66,131.46,131.44,3.04316651]
[1763581520514,23.24621771,131.48,131.44,3.04316651]
[1763581520722,0.69,131.47,131.44,3.04316651]
[1763581520909,0.69,131.47,131.44,4.75510837]
[1763581522220,5.44510837,131.47,131.43,11.60882769]
[1763581522426,4.75510837,131.46,131.42,9.78882769]
[1763581522614,5.44510837,131.46,131.42,9.78882769]
[1763581522816,0.69,131.45,131.42,9.78882769]
[1763581523026,0.69,131.45,131.42,14.54393606]
[1763581523225,0.69,131.46,131.43,4.75510837]
[1763581523665,0.69,131.45,131.43,4.75510837]
[1763581524263,6.94525771,131.47,131.43,4.75510837]
[1763581524563,0.69,131.46,131.43,4.75510837]
[1763581525242,18.12096,131.48,131.45,4.75510837]
[1763581525439,0.67,131.47,131.45,61.65510837]
[1763581526952,18.12096,131.47,131.46,4.75510837]
[1763581527158,18.12096,131.49,131.46,16.36393606]
[1763581527159,0.67,131.49,131.46,16.36393606]
[1763581527451,0.67,131.49,131.47,4.75510837]
[1763581528037,18.12096,131.5,131.46,11.60882769]
[1763581528038,18.12096,131.5,131.48,4.75510837]
[1763581528228,5.12192252,131.51,131.48,4.75510837]
[1763581528434,0.67,131.49,131.48,4.75510837]
[1763581529344,23.91288252,131.51,131.48,4.75510837]
[1763581529554,18.79096,131.5,131.49,4.75510837]
[1763581529931,1.82,131.52,131.49,4.75510837]
[1763581530131,0.67,131.53,131.51,4.75510837]
[1763581530357,18.79096,131.52,131.49,1.82]
[1763581530528,18.79096,131.52,131.5,4.75510837]
[1763581531258,0.67,131.51,131.49,6.57510837]
[1763581531644,0.67,131.51,131.46,9.78882769]
[1763581531645,18.12096,131.5,131.47,6.57510837]
[1763581531846,5.42510837,131.51,131.46,4.75510837]
[1763581531847,0.67,131.49,131.46,4.75510837]
[1763581532055,0.67,131.49,131.43,9.78882769]
[1763581532056,4.75510837,131.47,131.43,9.78882769]
[1763581532243,4.75510837,131.47,131.41,4.75510837]
[1763581532244,22.87606837,131.46,131.41,4.75510837]
[1763581532444,23.54606837,131.46,131.41,4.75510837]
[1763581532762,0.67,131.45,131.43,4.75510837]
[1763581532961,18.79096,131.45,131.43,4.75510837]
[1763581533164,18.79096,131.45,131.42,14.54393606]
[1763581533468,0.67,131.44,131.41,4.75510837]
[1763581534641,0.67,131.44,131.42,4.75510837]
[1763581536149,18.12096,131.45,131.43,4.75510837]
[1763581536347,18.79096,131.45,131.43,4.75510837]
[1763581538565,18.79096,131.45,131.41,2.1]
[1763581538767,18.12096,131.45,131.43,4.75510837]
[1763581538973,0.67,131.44,131.43,4.75510837]
[1763581539547,0.67,131.44,131.43,61.65510837]
[1763581539847,18.12096,131.45,131.43,61.65510837]
[1763581540042,0.67,131.44,131.43,61.65510837]
[1763581541950,0.67,131.47,131.44,9.78882769]
[1763581542171,1.82,131.5,131.46,4.75510837]
[1763581542372,0.67,131.49,131.47,4.75510837]
[1763581543341,18.79096,131.49,131.47,4.75510837]
[1763581543871,0.67,131.49,131.47,4.75510837]
[1763581544042,0.67,131.48,131.47,4.75510837]
[1763581544246,18.79096,131.5,131.47,4.75510837]
[1763581544568,23.54606837,131.49,131.46,56.9]
[1763581545072,5.42510837,131.48,131.46,56.9]
[1763581545555,0.67,131.47,131.44,73.26393606]
[1763581546457,22.87606837,131.49,131.44,9.78882769]
[1763581546458,18.12096,131.49,131.44,9.78882769]
[1763581546654,0.67,131.48,131.45,4.75510837]
[1763581546859,0.67,131.48,131.46,4.75510837]
[1763581547573,18.12096,131.49,131.46,4.75510837]
[1763581547782,18.12096,131.49,131.47,4.75510837]
[1763581549389,0.67,131.5,131.48,4.75510837]
[1763581549556,18.79096,131.52,131.49,4.75510837]
[1763581549753,0.67,131.52,131.49,4.75510837]
[1763581550057,18.79096,131.52,131.49,4.75510837]
[1763581550277,0.69,131.51,131.48,4.75510837]
[1763581550850,0.69,131.51,131.49,4.75510837]
[1763581551376,23.23919492,131.52,131.5,4.75510837]
[1763581551587,23.92919492,131.52,131.5,4.75510837]
[1763581551772,0.69,131.51,131.48,1.82]
[1763581552153,0.69,131.51,131.48,4.75510837]
[1763581553084,0.69,131.51,131.49,4.75510837]
[1763581554151,23.23958645,131.52,131.5,4.75510837]
[1763581554575,18.81096,131.52,131.5,4.75510837]
[1763581554794,18.81096,131.52,131.51,4.75510837]
[1763581555297,18.12096,131.52,131.51,4.75510837]
[1763581555459,18.81096,131.52,131.51,4.75510837]
[1763581555663,18.81096,131.52,131.5,4.75510837]
[1763581558964,18.81096,131.52,131.49,1.82]
[1763581559167,18.81096,131.52,131.49,6.57510837]
[1763581559360,18.81096,131.52,131.49,1.82]
[1763581559566,18.81096,131.52,131.49,6.57510837]
[1763581560485,0.69,131.51,131.47,9.78882769]
[1763581560667,0.69,131.51,131.49,4.75510837]
[1763581560866,18.12096,131.52,131.5,4.75510837]
[1763581561503,18.12096,131.52,131.48,11.60882769]
[1763581561504,18.81096,131.52,131.48,11.88882769]
[1763581561708,0.69,131.51,131.5,4.75510837]
[1763581561870,0.69,131.51,131.49,4.75510837]
[1763581562076,0.69,131.51,131.48,4.75510837]
[1763581562310,18.81096,131.51,131.46,9.78882769]
[1763581562475,22.87606837,131.49,131.45,4.75510837]
[1763581562675,0.69,131.48,131.45,4.75510837]
[1763581562871,0.69,131.48,131.46,4.75510837]
[1763581563907,0.69,131.52,131.47,6.85510837]
[1763581564211,0.69,131.52,131.5,4.75510837]
[1763581564830,18.12096,131.51,131.5,4.75510837]
[1763581564991,24.69606837,131.51,131.43,0.28]
[1763581565303,0.69,131.5,131.47,4.75510837]
[1763581565603,0.69,131.5,131.46,4.75510837]
[1763581565792,4.75510837,131.49,131.45,4.75510837]
[1763581565998,0.69,131.48,131.45,4.75510837]
[1763581566190,0.69,131.48,131.45,61.65510837]
[1763581566398,5.44510837,131.48,131.45,56.9]
[1763581566772,0.69,131.47,131.45,56.9]
[1763581567174,0.69,131.47,131.44,14.54393606]
[1763581568072,9.87216681,131.49,131.45,4.75510837]
[1763581568403,0.69,131.48,131.45,4.75510837]
[1763581569227,5.44510837,131.48,131.44,66.68882769]
[1763581569514,23.56606837,131.47,131.44,56.9]
[1763581569884,7.62496653,131.46,131.44,56.9]
[1763581570085,7.62496653,131.46,131.38,18.12096]
[1763581570086,18.12096,131.43,131.39,0.28]
[1763581570284,19.94096,131.43,131.4,14.54393606]
[1763581570503,0.69,131.46,131.42,14.54393606]
[1763581570723,18.81096,131.46,131.41,9.78882769]
[1763581571197,0.69,131.45,131.42,4.75510837]
[1763581571896,0.69,131.45,131.43,4.75510837]
[1763581573121,0.69,131.45,131.41,9.78882769]
[1763581573284,0.69,131.45,131.43,4.75510837]
[1763581573893,0.69,131.45,131.44,4.75510837]
[1763581574418,0.69,131.45,131.43,4.75510837]
[1763581574582,18.12096,131.44,131.41,4.75510837]
[1763581574788,18.12096,131.44,131.42,4.75510837]
[1763581575391,18.81096,131.44,131.42,4.75510837]
[1763581576026,18.12096,131.44,131.42,4.75510837]
[1763581576223,1.82,131.45,131.42,4.75510837]
[1763581576421,18.81096,131.44,131.41,4.75510837]
[1763581576632,18.12096,131.44,131.42,4.75510837]
[1763581577115,18.81096,131.44,131.42,4.75510837]
[1763581577305,18.12096,131.44,131.42,4.75510837]
[1763581577815,18.12096,131.44,131.43,4.75510837]
[1763581578209,18.81096,131.44,131.42,4.75510837]
[1763581578434,18.81096,131.44,131.43,4.75510837]
[1763581578435,18.12096,131.44,131.43,4.75510837]
[1763581578734,1.82,131.45,131.43,4.75510837]
[1763581578902,2.51,131.45,131.43,4.75510837]
[1763581579798,0.71,131.44,131.43,4.75510837]
[1763581580621,0.71,131.45,131.43,4.75510837]
[1763581580904,0.71,131.45,131.43,3.04412574]
[1763581581123,0.71,131.45,131.43,59.94412574]
[1763581581317,0.71,131.45,131.43,56.9]
[1763581581504,0.71,131.45,131.43,59.94412574]
[1763581583424,18.12096,131.47,131.44,3.04412574]
[1763581583606,2.53,131.47,131.45,3.04412574]
[1763581584698,0.71,131.46,131.45,3.04412574]
[1763581585731,18.83096,131.46,131.44,12.83295343]
[1763581586300,0.69,131.45,131.41,9.78882769]
[1763581586511,0.69,131.45,131.43,3.04412574]
[1763581588031,0.69,131.45,131.44,3.04412574]
[1763581588224,18.12096,131.46,131.44,3.04412574]
[1763581588523,18.12096,131.46,131.45,12.83295343]
[1763581588725,10.75882769,131.51,131.46,9.78882769]
[1763581588931,0.69,131.51,131.48,3.04412574]
[1763581589230,0.69,131.5,131.49,3.04412574]
[1763581589525,0.69,131.5,131.48,3.04412574]
[1763581589938,0.69,131.5,131.49,3.04412574]
[1763581590241,18.81096,131.51,131.49,3.04412574]
[1763581590527,0.69,131.5,131.46,11.88882769]
[1763581590728,0.69,131.5,131.48,3.04412574]
[1763581591309,0.69,131.5,131.46,11.60882769]
[1763581591529,0.69,131.5,131.48,3.04412574]
[1763581592418,0.69,131.5,131.49,3.04412574]
[1763581592609,18.12096,131.51,131.49,3.04412574]
[1763581592927,18.81096,131.51,131.5,3.04412574]
[1763581593106,18.12096,131.51,131.49,3.04412574]
[1763581593597,18.12096,131.51,131.46,11.88882769]
[1763581593598,0.69,131.5,131.47,3.04412574]
[1763581594236,0.69,131.5,131.48,3.04412574]
[1763581594810,18.81096,131.5,131.49,3.04412574]
[1763581595013,2.51,131.52,131.49,3.04412574]
[1763581595321,18.81096,131.51,131.5,3.04412574]
[1763581597105,18.12096,131.53,131.5,3.04412574]
[1763581597448,18.12096,131.53,131.52,3.04412574]
[1763581597739,18.81096,131.53,131.52,3.04412574]
[1763581598236,0.69,131.53,131.52,3.04412574]
[1763581598416,0.69,131.53,131.48,0.28]
[1763581598604,18.81096,131.53,131.51,3.04412574]
[1763581598940,18.12096,131.52,131.51,3.04412574]
[1763581599432,18.81096,131.52,131.49,12.83295343]
[1763581599640,0.69,131.51,131.49,12.83295343]
[1763581599815,19.94096,131.52,131.5,3.04412574]
[1763581600019,20.63096,131.52,131.5,3.04412574]
[1763581601603,0.69,131.55,131.51,3.04412574]
[1763581601941,18.12096,131.54,131.53,3.04412574]
[1763581602364,18.81096,131.54,131.52,3.04412574]
[1763581603638,18.81096,131.54,131.53,3.04412574]
[1763581603812,18.81096,131.54,131.52,3.04412574]
[1763581604014,18.81096,131.54,131.52,59.94412574]
[1763581604215,0.69,131.53,131.52,59.94412574]
[1763581604513,18.81096,131.54,131.52,59.94412574]
[1763581605127,18.12096,131.52,131.48,3.04412574]
[1763581605325,2.51,131.53,131.5,3.04412574]
[1763581605539,0.69,131.52,131.5,3.04412574]
[1763581606822,2.51,131.54,131.51,3.04412574]
[1763581607030,18.12096,131.53,131.52,3.04412574]
[1763581607229,18.81096,131.53,131.52,3.04412574]
[1763581609542,18.81096,131.53,131.47,9.78882769]
[1763581609754,5.55412574,131.52,131.45,10.06882769]
[1763581609918,5.55412574,131.52,131.48,3.04412574]
[1763581610117,0.68,131.51,131.48,3.04412574]
[1763581612533,0.68,131.51,131.49,3.04412574]
[1763581613125,19.94096,131.52,131.49,3.04412574]
[1763581613338,0.68,131.51,131.49,59.94412574]
[1763581615760,0.68,131.51,131.49,56.9]
[1763581616532,0.68,131.51,131.49,59.94412574]
[1763581617326,20.62096,131.52,131.5,3.04412574]
[1763581617524,20.62096,131.52,131.5,59.94412574]
[1763581617848,20.62096,131.52,131.5,56.9]
[1763581618727,2.5,131.52,131.5,56.9]
[1763581619246,0.68,131.52,131.5,56.9]
[1763581620243,6.93245594,131.53,131.5,56.9]
[1763581620434,7.61245594,131.53,131.51,3.04412574]
[1763581620623,2.5,131.53,131.51,3.04412574]
[1763581621136,18.80096,131.54,131.52,3.04412574]
[1763581622157,0.68,131.53,131.52,3.04412574]
[1763581623548,0.68,131.53,131.51,3.04412574]
[1763581623764,0.68,131.53,131.48,9.78882769]
[1763581623935,5.79540818,131.53,131.49,3.04412574]
[1763581624251,7.61540818,131.53,131.49,3.04412574]
[1763581624439,0.68,131.52,131.49,3.04412574]
[1763581624639,0.68,131.52,131.5,3.04412574]
[1763581624853,6.93540818,131.53,131.5,3.04412574]
[1763581625039,2.5,131.53,131.51,3.04412574]
[1763581625360,0.68,131.52,131.48,11.60882769]
[1763581625653,0.68,131.52,131.5,3.04412574]
[1763581626349,2.5,131.52,131.48,69.73295343]
[1763581626545,7.61882246,131.52,131.49,9.78882769]
[1763581626759,7.61882246,131.52,131.49,12.83295343]
[1763581626936,0.68,131.51,131.49,12.83295343]
[1763581627254,0.68,131.51,131.49,9.78882769]
[1763581627667,0.68,131.51,131.49,12.83295343]
[1763581629849,0.68,131.53,131.52,3.04412574]
[1763581630446,5.8064242,131.53,131.52,3.04412574]
[1763581630646,5.1264242,131.53,131.52,3.04412574]
[1763581630863,19.94096,131.54,131.52,3.04412574]
[1763581631036,20.62096,131.54,131.52,3.04412574]
[1763581631236,5.12806107,131.53,131.52,3.04412574]
[1763581631431,0.68,131.56,131.52,12.83295343]
[1763581631634,18.80096,131.55,131.53,3.04412574]
[1763581631868,23.92894787,131.55,131.53,3.04412574]
[1763581632228,5.12798787,131.55,131.54,3.04412574]
[1763581632565,0.2,131.57,131.54,3.04412574]
[1763581632736,0.2,131.57,131.49,58.72]
[1763581632737,23.66508574,131.56,131.5,9.78882769]
[1763581632946,5.12798787,131.55,131.52,3.04412574]
[1763581633256,5.12798787,131.55,131.53,3.04412574]
[1763581633450,5.80798787,131.55,131.53,3.04412574]